Cogmind - Beta 14 @@@ ROGUE MODE // 2024.10.02 @ 23:04:47 Player: bluemonk Result: Destroyed by G-47 Trooper with Particle Gun Performance ------------- Evolutions (2) 1000 Regions Visited (4) 800 Robots Destroyed (13) 65 Value Destroyed (395) 395 Prototype IDs (3) 60 Alien Tech Used (0) 0 Bonus (-7) -7 TOTAL SCORE: 2313 Bonus ------- Friendly Fire -7 Cogmind --------- Core Integrity 0/550 Matter 66/300 Energy 59/100 System Corruption 2% Temperature Critical (744) Movement Core (150) Ox2 Location -8/Materials Parts ------- > --- POWER (1) -------- Faulty Cooled Ion Engine > --- PROPULSION (4) --- Advanced Treads Cesium-ion Thruster > --- UTILITY (3) ------ Makeshift Hacking Suite > --- WEAPON (3) ------- (None) > --- INVENTORY (5) ---- (None) Peak State ------------ > --- POWER ------------ Light Angular Momentum Engine > --- PROPULSION ------- Aluminum Leg Carbon-fiber Leg Carbon-fiber Leg Titanium Leg > --- UTILITY ---------- Makeshift Light Armor Plating Hardlight Generator Makeshift Hacking Suite > --- WEAPON ----------- Heavy Particle Cannon Slug Cannon Flamer > --- INVENTORY -------- Cooled Ion Engine Advanced Treads Cesium-ion Thruster Assault Cannon [Rating: 36] Favorites ----------- Power Ion Engine Engine Ion Engine Propulsion Aluminum Leg Treads Advanced Treads Leg Aluminum Leg Flight Unit Cesium-ion Thruster Utility Small Storage Unit Device Hardlight Generator Storage Small Storage Unit Hackware Makeshift Hacking Suite Protection Scrap Shield Weapon Assault Rifle Energy Gun Small Laser Energy Cannon Heavy Particle Cannon Ballistic Gun Assault Rifle Ballistic Cannon Slug Cannon Launcher Subdweller Shrapnel Launcher Special Weapon Flamer Build | -11 -10 -10 -10 -8 ------- Run | Yrd Mat Min Sub Mat Slots Evolved 4 | . . . . 4 Power . | . . . . . Propulsion 2 | . . . . 2 Utility 1 | . . . . 1 Weapon 1 | . . . . 1 Parts Attached 28 | 6 1 . 9 12 Power 4 | 1 . . 2 1 Engine 4 | 1 . . 2 1 Core . | . . . . . Reactor . | . . . . . Propulsion 8 | 2 . . 2 4 Treads 1 | . . . . 1 Leg 6 | 2 . . 2 2 Wheel . | . . . . . Hover . | . . . . . Flight 1 | . . . . 1 Utility 7 | 1 1 . 1 4 Device 2 | . . . . 2 Storage 2 | 1 1 . . . Processor . | . . . . . Hackware 1 | . . . . 1 Protection 2 | . . . 1 1 Artifact . | . . . . . Weapon 9 | 2 . . 4 3 Energy Gun 1 | 1 . . . . Energy Cannon 3 | . . . 1 2 Ballistic Gun 1 | 1 . . . . Ballistic Cannon 2 | . . . 1 1 Launcher 1 | . . . 1 . Special Weapon 1 | . . . 1 . Impact Weapon . | . . . . . Slashing Weapon . | . . . . . Piercing Weapon . | . . . . . Special Melee Weapon . | . . . . . Unidentified Prototypes 1 | . . . . 1 Parts Lost 13 | . . . . 13 Power 1 | . . . . 1 Propulsion 4 | . . . . 4 Utility 4 | . . . . 4 Weapon 4 | . . . . 4 Highest Loss Streak 12 | . . . . 12 To Critical Strikes . | . . . . . Average Slot Usage (%) 91 | . 99 100 85 85 Engine 13 | . 14 14 14 8 Leg 28 | . 28 28 28 31 Storage 12 | . 27 28 . . Hackware 1 | . . . . 9 Protection 6 | . . . 13 8 Energy Gun 6 | . 14 14 2 . Energy Cannon 1 | . . . . 8 Ballistic Gun 7 | . 14 14 3 . Ballistic Cannon 5 | . . . 9 9 Launcher 2 | . . . 6 . Special Weapon 3 | . . . 5 7 Peak Build Rating 36 | 6 7 7 22 36 Average Rating 14 | 4 6 7 17 31 On Entrance 8 | . 6 7 7 22 Naked Turns . | . . . . . Heaviest Build 44 | 13 17 17 42 44 Greatest Support 57 | 20 20 20 30 57 Greatest Overweight (x) 4 | 4 . . 1 2 Average Overweight (x) . | 1 . . . . Largest Inventory Capacity 8 | 8 8 8 8 5 Average Capacity 6 | 7 8 8 5 5 Most Carried 8 | 6 8 8 8 5 Average Carried 5 | 2 7 8 5 4 Final Capacity 8 | 8 8 8 5 5 Final Carried 8 | 6 8 8 5 . Class Distribution -------------------- 67% | Mutant 13% | Subdweller-Mutant 6% | Derelict-Tank 6% | Tank 5% | Scavenger-Mutant Dominant Class ---------------- Mutant | -10/Materials Mutant | -10/Mines Mutant | -10/Subcaves Derelict-Tank | -8/Materials Resources | -11 -10 -10 -10 -8 ----------- Run | Yrd Mat Min Sub Mat Matter Collected 691 | 198 103 42 295 53 Remotely . | . . . . . Salvage Created 387 | . 115 42 92 138 Parts 15 | . 6 4 . 5 Haulers Intercepted 1 | . 1 . . . Recyclers Shooed . | . . . . . Parts Field Recycled . | . . . . . Retrieved Matter . | . . . . . Parts Self-Destructed 3 | . . . 3 . Prevented . | . . . . . Kills | -11 -10 -10 -10 -8 ------- Run | Yrd Mat Min Sub Mat Combat Hostiles Destroyed 11 | . 1 3 2 5 Guns 4 | . 1 3 . . Cannons 5 | . . . 1 4 Classes Destroyed 6 | . 3 1 1 1 Hauler 1 | . 1 . . . Watcher 1 | . 1 . . . Swarmer 3 | . . 3 . . Grunt 5 | . 1 . . 4 Sentry 1 | . . . . 1 Subdweller 2 | . . . 2 . Best Kill Streak 3 | . 2 3 2 2 Combat Bots Only 3 | . 1 3 2 2 Max Kills in Single Turn 1 | . 1 1 1 1 Gunslinging . | . . . . . Exploded . | . . . . . Melee . | . . . . . Uniques/NPCs Destroyed . | . . . . . Combat | -11 -10 -10 -10 -8 -------- Run | Yrd Mat Min Sub Mat Hostile Shots Fired 144 | . 2 24 12 106 Missed 27 | . . 6 2 19 Damage Taken 2129 | . 23 141 336 1629 Core 607 | . 11 39 . 557 Absorbed by Shields 32 | . . . . 32 Core Remaining (%) 90 | 100 . . 80 . Volleys Fired 59 | . 8 7 14 30 Largest 3 | . 2 2 2 3 Hottest 223 | . 60 60 148 223 Shots Fired 128 | . 16 14 29 69 Gun 41 | . 16 14 11 . Cannon 66 | . . . 9 57 Launcher 3 | . . . 3 . Special 18 | . . . 6 12 Kinetic 60 | . 8 7 15 30 Thermal 68 | . 8 7 14 39 Explosive . | . . . . . Electromagnetic . | . . . . . Robot Hit Streak 8 | . 5 2 6 8 Robot Miss Streak 5 | . 2 5 1 5 Penetration Max . | . . . . . Secondary Targets . | . . . . . Shots Hit Robots 66 | . 11 4 14 37 Core Hits 19 | . 5 3 1 10 Critical Kills 2 | . . . 1 1 Critical Parts Destroyed 2 | . . . . 2 Critical Strikes 5 | . . . 1 4 Burn 1 | . . . . 1 Meltdown 1 | . . . 1 . Destroy 3 | . . . . 3 Melee Attacks . | . . . . . Impact . | . . . . . Slashing . | . . . . . Piercing . | . . . . . Sneak Attacks . | . . . . . Combat Hostiles . | . . . . . Follow-up Attacks . | . . . . . Damage Inflicted 1305 | . 133 49 250 873 Guns 288 | . 133 49 106 . Cannons 876 | . . . 57 819 Explosions 75 | . . . 75 . Melee . | . . . . . Ramming . | . . . . . Kinetic 580 | . 77 37 147 319 Thermal 725 | . 56 12 103 554 Explosive . | . . . . . Electromagnetic . | . . . . . Impact . | . . . . . Slashing . | . . . . . Piercing . | . . . . . Highest Corruption 2 | . 2 2 2 2 Average Corruption 2 | . 2 2 2 2 Corruption Purged . | . . . . . Corruption Blocked . | . . . . . Effects 25 | . . 10 14 1 Message Errors 5 | . . 4 1 . Matter Fused 5 | . . . 5 . Heat Flow Errors 5 | . . 2 3 . Energy Discharges 3 | . . 2 1 . Data Loss (minor) 4 | . . 2 1 1 Data Loss (major) 2 | . . . 2 . Misfires 1 | . . . 1 . Overload Shots . | . . . . . Overflow Damage 10 | . . . . 10 Projectiles 10 | . . . . 10 Explosions . | . . . . . Melee . | . . . . . Knockbacks 6 | . . . . 6 Impact . | . . . . . Kinetic 5 | . . . . 5 Secondary 1 | . . . . 1 Self-Inflicted Damage . | . . . . . Shots . | . . . . . Rammed . | . . . . . Targets Rammed . | . . . . . Kicked . | . . . . . Crushed . | . . . . . Highest Temperature 1181 | . 12 214 197 1181 Average Temperature 363 | . 10 105 94 427 Received Heat Transfer 741 | . 12 . 12 717 Effects 46 | . . . . 46 Shutdowns 5 | . . . . 5 Energy Bleed 8 | . . . . 8 Interference 7 | . . . . 7 Matter Decay 1 | . . . . 1 Short Circuit 5 | . . . . 5 Damage (minor) 3 | . . . . 3 Damage (major) 13 | . . . . 13 Damage (core) 4 | . . . . 4 Siege Activations . | . . . . . Robots Corrupted . | . . . . . Combat Hostiles . | . . . . . Parts Fried . | . . . . . Impact Corruptions 1 | . . . . 1 Robots Melted 2 | . . . 1 1 Combat Hostiles 2 | . . . 1 1 Parts Melted 3 | . . . 2 1 Heat Transferred 1679 | . 125 25 229 1300 Parts Sabotaged . | . . . . . Parts Stolen . | . . . . . Parts Stripped . | . . . . . Power Chain Reactions . | . . . . . Alert | -11 -10 -10 -10 -8 ------- Run | Yrd Mat Min Sub Mat Peak Influence 141 | . 49 103 . 141 Initial 18 | . . 18 . . Average 44 | . 24 46 . 55 Maximum Alert Level . | . . . . . Low Security (%) 100 | 100 100 100 . 100 Level 1 . | . . . . . Level 2 . | . . . . . Level 3 . | . . . . . Level 4 . | . . . . . Level 5 . | . . . . . High Security . | . . . . . Max Security . | . . . . . Squads Dispatched 2 | . . . . 2 Investigation 1 | . . . . 1 Extermination . | . . . . . Reinforcement 1 | . . . . 1 Assault . | . . . . . Garrison . | . . . . . Intercept . | . . . . . Searches Triggered . | . . . . . Construction Impeded . | . . . . . Haulers Reinforced . | . . . . . Active Scanning Responses . | . . . . . Cargo Convoy Interrupts . | . . . . . Stealth | -11 -10 -10 -10 -8 --------- Run | Yrd Mat Min Sub Mat Distress Signals 2 | . . . . 2 Communications Jammed . | . . . . . Distress Signals . | . . . . . Times Spotted 30 | . 2 3 9 16 Peak Tracking Total 7 | . 1 3 5 7 Tactical Retreats 1 | . . . . 1 Traps | -11 -10 -10 -10 -8 ------- Run | Yrd Mat Min Sub Mat Traps Triggered 4 | . 1 . 2 1 Indirectly . | . . . . . Trap Hack Attempts . | . . . . . Triggered . | . . . . . Disarmed . | . . . . . Reprogrammed . | . . . . . Reused . | . . . . . Traps Extracted . | . . . . . Installed . | . . . . . Triggered . | . . . . . Most Traps Carried 1 | . . . 1 . Machines | -11 -10 -10 -10 -8 ---------- Run | Yrd Mat Min Sub Mat Machines Disabled . | . . . . . Max in Single Turn . | . . . . . Machines Repaired . | . . . . . Machines Dismantled . | . . . . . Machines Sabotaged . | . . . . . Overloaded Fab Kills . | . . . . . Hacking | -11 -10 -10 -10 -8 --------- Run | Yrd Mat Min Sub Mat Machines Accessed 2 | . 1 . . 1 Terminals 1 | . . . . 1 Fabricators . | . . . . . Repair Stations . | . . . . . Recycling Units 1 | . 1 . . . Scanalyzers . | . . . . . Garrison Access . | . . . . . Total Hacks 7 | . 4 . . 3 Successful 5 | . 3 . . 2 Failed 2 | . 1 . . 1 Catastrophic . | . . . . . Database Lockouts . | . . . . . Manual . | . . . . . Terminals 3 | . . . . 3 Fabricators . | . . . . . Repair Stations . | . . . . . Recycling Units 4 | . 4 . . . Scanalyzers . | . . . . . Garrison Access . | . . . . . Terminal Hacks 2 | . . . . 2 Record 1 | . . . . 1 Prototype ID Bank 1 | . . . . 1 Fabricator Hacks . | . . . . . Repair Station Hacks . | . . . . . Recycling Unit Hacks 3 | . 3 . . . Process 1 | . 1 . . . Report Inventory 1 | . 1 . . . Retrieve Matter 1 | . 1 . . . Scanalyzer . | . . . . . Garrison Access Hacks . | . . . . . Unauthorized Hacks . | . . . . . Terminals . | . . . . . Fabricators . | . . . . . Repair Stations . | . . . . . Recycling Units . | . . . . . Scanalyzers . | . . . . . Garrison Access . | . . . . . Data Cores Recovered . | . . . . . Used . | . . . . . Hacking Detections 1 | . . . . 1 Full Trace Events . | . . . . . Feedback Events . | . . . . . Feedback Blocked . | . . . . . Robot Schematics Acquired . | . . . . . Robots Built . | . . . . . Authchips . | . . . . . Time . | . . . . . Total Robot Build Rating . | . . . . . Part Schematics Acquired . | . . . . . Parts Built . | . . . . . Authchips . | . . . . . Time . | . . . . . Total Part Build Rating . | . . . . . Parts Repaired . | . . . . . Time . | . . . . . Parts Recycled . | . . . . . Recycled Matter 4 | . 4 . . . Retrieved Matter 4 | . 4 . . . Retrieved Components . | . . . . . Parts Scanalyzed . | . . . . . Part Schematics Acquired . | . . . . . Parts Damaged . | . . . . . Bothacking | -11 -10 -10 -10 -8 ------------ Run | Yrd Mat Min Sub Mat Used RIF Installer . | . . . . . Robots Hacked . | . . . . . Non-combat . | . . . . . Combat . | . . . . . Robot Hacks Applied . | . . . . . Relay Couplers Released . | . . . . . Fabnet Peak Effective % . | . . . . . Robots Rewired . | . . . . . Allies Hacked . | . . . . . Hacks Repelled . | . . . . . Allies | -11 -10 -10 -10 -8 -------- Run | Yrd Mat Min Sub Mat Total Allies . | . . . . . Largest Group . | . . . . . Highest-Rated Group . | . . . . . Highest-Rated Ally . | . . . . . Total Orders . | . . . . . Ally Attacks . | . . . . . Total Damage . | . . . . . Kills . | . . . . . Allies Corrupted . | . . . . . Allies Melted . | . . . . . Intel | -11 -10 -10 -10 -8 ------- Run | Yrd Mat Min Sub Mat Robot Analysis Total . | . . . . . Derelict Logs Recovered . | . . . . . Drone Launches . | . . . . . Drone Recoveries . | . . . . . Exploration | -11 -10 -10 -10 -8 ------------- Run | Yrd Mat Min Sub Mat Turns Passed 2393 | 85 152 859 914 383 Spaces Moved 787 | 48 104 24 437 174 Core 24 | 20 . . . 4 Treads . | . . . . . Legs 760 | 28 104 24 437 167 Wheels . | . . . . . Hover . | . . . . . Flight 3 | . . . . 3 Fastest Speed 50 | 50 120 120 120 120 Average Speed 162 | 140 120 120 188 134 Slowest Speed 250 | 250 120 120 190 225 Overloaded Moves . | . . . . . Propulsion Burnouts . | . . . . . Robots Hopped . | . . . . . Cave-ins Triggered . | . . . . . Exploration Rate (%) 17 | 4 21 8 37 16 Regions Visited 4 Branch Regions 2 Pre-discovered Areas . | . . . . . Known Exits Taken . | . . . . . Unknown Exits Taken 4 | 1 1 1 1 . Scrap Searched 5 | . . . 5 . Spaces Dug . | . . . . . Terrain Destroyed 77 | . . . 58 19 Melee . | . . . . . Projectile 19 | . . . . 19 AOE 58 | . . . 58 . Terrain Rammed . | . . . . . Walls Destroyed . | . . . . . Machines Disabled . | . . . . . Actions | -11 -10 -10 -10 -8 --------- Run | Yrd Mat Min Sub Mat Total 1773 | 65 115 840 497 256 Wait 833 | . . 810 . 23 Move 783 | 47 103 23 436 174 Hop . | . . . . . Pick Up 43 | 12 3 . 17 11 Fast Attach . | . . . . . Attach 21 | 6 1 . 2 12 Detach 1 | . . . . 1 Swap 7 | . . . 7 . Drop 23 | . . . 18 5 Fire 59 | . 8 7 14 30 Melee . | . . . . . Ram . | . . . . . Kick . | . . . . . Crush . | . . . . . Escape Stasis . | . . . . . Rewire . | . . . . . Trap . | . . . . . Miscellaneous 3 | . . . 3 . Route ------- -11/Scrapyard -10/Materials (discovered 2 exits: [*Mat] / [*Min]) -10/Mines -10/Subcaves -8/Materials History --------- Turn | Location | Event 17 | -11/Scrapyard | Discovered new exit (range 16) 86 | -11/Scrapyard | Entered Materials 215 | -10/Materials | Discovered new exit (range 15) 236 | -10/Materials | Discovered new exit (range 15) 238 | -10/Materials | Entered Mines 264 | -10/Mines | Met a Derelict bent on vengeance 309 | -10/Mines | Build established: Mutant 1091 | -10/Mines | Discovered new exit (range 6) 1097 | -10/Mines | Entered Subcaves 1199 | -10/Subcaves | Ambushed by swarm of Subdwellers 1333 | -10/Subcaves | Ambushed by Subdweller buried in earth 1525 | -10/Subcaves | Build established: Subdweller-Mutant 1903 | -10/Subcaves | A swath of the cavern ceiling suddenly collapsed 1962 | -10/Subcaves | Discovered new exit (range 10) 1968 | -10/Subcaves | Build established: Mutant 2011 | -10/Subcaves | Entered Materials 2011 | -8/Materials | Evolved 4 slots: Propulsion x2, Utility x1, Weapon x1 2367 | -8/Materials | Core integrity fell below 50% 2388 | -8/Materials | Core integrity fell below 20% 2394 | -8/Materials | Destroyed by G-47 Trooper with Particle Gun Last Messages --------------- (-32). Adv. Treads broken. Overheating: Short circuit. Critical hit (Burn: +37). Overheating: Mak. Hacking Suite damaged (-1). Hvy. Particle Cannon broken. Overheating: Short circuit. Hardlight Generator destroyed. Overheating: System interference. Assault Cannon temporarily disabled. Assault Cannon destroyed. System corrupted: Component data lost. Carbon-fiber Leg destroyed. Overheating: Broken Hvy. Particle Cannon damaged (-4). Broken Hvy. Particle Cannon destroyed. Overheating: Core damaged (-88). Cesium-ion Thruster broken. Overheating: Short circuit. Overheating: Energy bleed (-5). Map ----- +----------------------------------------------------+ | ## #???????????????????????????? | | ## """ *#???????????????????????????? | | ##+####### ## """ #???????????????????????????? | | ## ## """ !????????????????????????????? | | """ ## ## ??????????????????????????????? | | """ *## ###+####????????????????????????????? | | """ ## #????????????????????????????? | | ## #????????????????????????????? | | """ ## #????????????????????????????? | | """ ######### #????????????????????????????? | | """ # # #????????????????????????????? | | # """ # #????????????????????????????? | | ######### """ + #????????????????????????????? | | ????????# """ # ?????????????????????? | | ????????# """ # ?????????????????? | | ????????# # ??????????????????? | | ????????# """ ##############+??????????????????? | | ????????# """ ##?# """ #??????????????????????? | | ????????# """ "#?# "T" #??????????????????????? | | ????????# "" ##?# #??????????????????????? | | ????????# #??# ! #??????????????????????? | | ????????#######+#??# #??????????????????????? | | ?????????????## #??# #??????????????????????? | | ?????????????#" #?##! * #??????????????????????? | | ???????????#### ###%g Y%g #??????????????????????? | | ???????????# ;;;/%;@#??????????????????????? | | ?? ####; g %* #??????????????????????? | | ?? g % ########???????????????? | | ?? % +??????????????? | | ?? % ########???????????????? | | ?? #"### #??????????????????????? | | ??? ?????# #;#;##+####???????????????????? | | ??? ???????###;##### #???????????????????? | | ????????????? ?##??# """ #???????????????????? | | ???????????????????# """ "" #???????????????????? | | ???????????????????# """ T" #???????????????????? | | ???????????????????# "" #???????????????????? | | ???????????????????# #???????????????????? | | ???????????????????###########???????????????????? | | ?????????????????????????????????????????????????? | | ?????????????????????????????????????????????????? | | ?????????????????????????????????????????????????? | | ?????????????????????????????????????????????????? | | ?????????????????????????????????????????????????? | | ?????????????????????????????????????????????????? | | ?????????????????????????????????????????????????? | | ?????????????????????????????????????????????????? | | ?????????????????????????????????????????????????? | | ?????????????????????????????????????????????????? | | ?????????????????????????????????????????????????? | +----------------------------------------------------+ Best States ------------- Heat Dissipation 31 Energy Generation 18 Energy Capacity 250 Matter Stores 332 Matter Capacity 500 Sight Range 16 Terrain Scan Density 10 Armor Coverage 800 Evasion (%) 55 Recoil Reduction 1 Offensive Hacking 11 Item Schematics ----------------- None Robot Schematics ------------------ None Fabricated ------------ Nothing Alien Tech Used ----------------- None Achievements -------------- None Challenges ------------ None Game ------ Seed LargeNullDoomcannon Manual? 0 Play Time 00:26:42 Cumulative 14.3 hours Start 2024.10.02 @ 22:40:21 End 2024.10.02 @ 23:04:47 Sessions 1 Manual Loads 0 Difficulty Rogue Special Mode None Game No. 23 Rogue 23 Adventurer 0 Explorer 0 Win Type - Total 0 Types 0/0/0/0/0/0/0/0/0 Lore% 7 Gallery% 19 Achievement% 18 Wizard Run 0 Options --------- Layout 1 ASCII 0 Keyboard 0 Movement Numpad Keybinds 0 Fullscreen 1 Font 24/Smallcaps Map View 50x35 Zoom Use 0% Tactical HUD 0 Map Filters NONE Filters NONE Steam 1 RUN: 74186eb9-6c86-463e-8986-fd9ef0c2f591